[Event "NOR-chT Codanserien 2017-18"]
[Site "Oslo"]
[Date "2017.12.03"]
[Round "3"]
[White "Persson, Mats"]
[Black "Flermoen, Peter"]
[Result "0-1"]
[ECO "A49"]
[WhiteElo "2306"]
[BlackElo "2252"]
[Annotator "NA"]
[PlyCount "106"]
[EventDate "2017.??.??"]
[EventType "team-tourn"]
[EventCountry "NOR"]
[SourceTitle "playchess.com"]
[Source "ChessBase"]
[SourceQuality "1"]
[TimeControl "40/5400+30:1800+30"]

1. d4 {[%emt 0:00:00]} Nf6 {[%emt 0:00:29]} 2. Nf3 {[%emt 0:00:00]} g6 {[%emt 0:00:10]} 3. g3 {[%emt 0:00:00]} Bg7 {[%emt 0:00:16]} 4. Bg2 {[%emt 0:00:00]} O-O {[%emt 0:00:19]} 5. O-O {[%emt 0:00:00]} d5 {[%emt 0:00:15]} 6. Bf4 {[%emt 0:00:13]} Bf5 {[%emt 0:01:24] D02: 1 d4 d5 2 Nf3 sidelines, including 2...Nf6 3 g3 and 2...Nf6 3 Bf4} 7. Nbd2 {[%emt 0:03:08]} c6 {[%emt 0:01:06]} 8. h3 {[%emt 0:00:21]} Qb6 $146 {[%emt 0:01:34]} ({Predecessor:} 8... Ne4 9. c3 Qb6 10. Qb3 Nd7 11. Rfd1 Nxd2 12. Nxd2 e5 13. dxe5 Nxe5 14. e4 dxe4 15. Nxe4 {1-0 (27) Smyslov,V (2620)-Tukmakov,V (2565) Leningrad 1971}) 9. g4 {[%emt 0:00:19]} Be4 {[%emt 0:04:15]} 10. Rb1 {[%emt 0:17:05]} Nbd7 {[%emt 0:00:47]} 11. e3 {[%emt 0:01:23]} c5 {[%emt 0:01:39]} 12. Nxe4 {[%emt 0:01:11]} Nxe4 {[%emt 0:01:04]} 13. Ne5 {[%emt 0:03:27]} Rfd8 {[%emt 0:04:10]} 14. Nxd7 {[%emt 0:07:13]} Rxd7 {[%emt 0:00:14]} 15. c3 {[%emt 0:02:20]} Qc6 {[%emt 0:05:27]} 16. Qe2 {[%emt 0:09:44]} b5 {[%emt 0:01:13]} 17. Rfd1 {[%emt 0:00:59]} Rdd8 {[%emt 0:13:01]} 18. a3 {[%emt 0:04:52]} Rac8 {[%emt 0:04:17]} 19. Bxe4 {[%emt 0:05:29]} dxe4 {[%emt 0:00:42]} 20. dxc5 {[%emt 0:00:33]} Qxc5 {[%emt 0:04:48]} 21. Rxd8+ {[%emt 0:00:21]} Rxd8 {[%emt 0:00:18]} 22. Rd1 {[%emt 0:00:08]} Rd5 {[%emt 0:02:00]} 23. Rxd5 {[%emt 0:01:04]} Qxd5 {[%emt 0:00:49]} 24. Kf1 {[%emt 0:02:20]} e5 {[%emt 0:14:03]} 25. Bg5 {[%emt 0:02:41]} f6 {[%emt 0:01:38]} 26. Bh4 {[%emt 0:00:05]} Kf7 {[%emt 0:01:03]} 27. Ke1 {[%emt 0:00:13]} a5 {[%emt 0:07:49]} 28. a4 {[%emt 0:04:20]} bxa4 {[%emt 0:02:33]} 29. Qa6 {[%emt 0:01:12]} (29. g5 $15) 29... g5 {[%emt 0:02:30]} 30. Bg3 {[%emt 0:01:44]} Bf8 {[%emt 0:01:15]} 31. h4 {[%emt 0:09:25]} h6 {[%emt 0:02:14]} 32. Qa7+ {[%emt 0:04:19]} Be7 {[%emt 0:00:47]} 33. h5 {[%emt 0:01:11]} Qb5 {[%emt 0:07:42]} 34. Qa8 {[%emt 0:02:11]} Qxb2 {[%emt 0:01:20]} 35. Qd5+ {[%emt 0:01:18]} Ke8 {[%emt 0:03:59]} 36. Qg8+ {[%emt 0:01:44]} Kd7 {[%emt 0:00:53]} 37. Qd5+ {[%emt 0:00:02]} Bd6 {[%emt 0:01:19]} 38. Qf7+ {[%emt 0:00:18]} Kc6 {[%emt 0:01:09]} 39. Qe8+ {[%emt 0:03:35]} Kc7 {[%emt 0:07:09]} 40. Qxa4 {[%emt 0:02:31]} Qb1+ {[%emt 0:31:36]} 41. Ke2 {[%emt 0:33:56]} Qd3+ {[%emt 0:00:09]} 42. Ke1 {[%emt 0:00:04]} Qxc3+ {[%emt 0:00:37]} 43. Kf1 {[%emt 0:00:01]} Qb4 {[%emt 0:00:40]} 44. Qe8 $19 {[%emt 0:00:27]} a4 {[%emt 0:00:00]} 45. Qg6 {[%emt 0:00:00]} Be7 {[%emt 0:00:00]} 46. Qxh6 {[%emt 0:00:00]} a3 {[%emt 0:00:00]} 47. Qg7 {[%emt 0:00:00]} a2 {[%emt 0:00:00]} 48. h6 {[%emt 0:00:00]} a1=Q+ {[%emt 0:00:00]} 49. Kg2 {[%emt 0:00:00]} Kd7 {[%emt 0:00:00]} 50. Qg8 {[%emt 0:00:00]} Qb5 {[%emt 0:00:00]} 51. Kh2 {[%emt 0:00:00]} Qbf1 {[%emt 0:00:00]} 52. Qd5+ {[%emt 0:00:00]} Kc7 {[%emt 0:00:00]} 53. Qxe4 {[%emt 0:00:00]} Qg1+ {[%emt 0:00:00]} 0-1

[Event "NOR-chT Codanserien 2017-18"]
[Site "Oslo"]
[Date "2017.12.03"]
[Round "3"]
[White "Tryggestad, Andreas Garberg"]
[Black "Andersen, Alf R"]
[Result "1/2-1/2"]
[ECO "A40"]
[WhiteElo "2264"]
[BlackElo "2161"]
[Annotator "NA"]
[PlyCount "88"]
[EventDate "2017.??.??"]
[EventType "team-tourn"]
[EventCountry "NOR"]
[SourceTitle "playchess.com"]
[Source "ChessBase"]
[SourceQuality "1"]
[TimeControl "40/5400+30:1800+30"]

1. d4 {[%emt 0:00:00]} e6 {[%emt 0:00:08]} 2. Nf3 {[%emt 0:00:00]} f5 {[%emt 0:00:36]} 3. c4 {[%emt 0:00:04]} Nf6 {[%emt 0:00:55]} 4. Nc3 {[%emt 0:00:23]} d5 {[%emt 0:03:03]} 5. Bf4 {[%emt 0:00:19]} c6 {[%emt 0:00:07]} 6. e3 {[%emt 0:00:32]} Bd6 {[%emt 0:02:01]} 7. Ne5 {[%emt 0:05:22]} O-O {[%emt 0:01:35] A84: Dutch Defence: 2 c4 Miscellaneous} 8. Be2 {[%emt 0:02:01]} (8. Bd3 Qe7 9. c5 Bc7 10. O-O Ne8 11. h3 Nd7 12. b4 Nxe5 13. Bxe5 Bxe5 14. dxe5 b6 15. Rc1 bxc5 16. bxc5 Qxc5 {1-0 (38) Tang,A (2478)-Colas,J (2366) Saint Louis 2017}) 8... Qe7 {[%emt 0:03:05]} 9. c5 {[%emt 0:01:54]} Bxe5 {[%emt 0:14:32]} 10. Bxe5 {[%emt 0:01:51]} Ne8 {[%emt 0:00:06]} 11. O-O {[%emt 0:11:06]} Nd7 {[%emt 0:02:15]} 12. f4 {[%emt 0:02:45]} g5 $146 {[%emt 0:07:48]} ({Predecessor:} 12... Nxe5 13. fxe5 g6 14. b4 Ng7 15. b5 {0-1 (58) Yudovich,M-Rokhlin,Y Moscow 1944}) 13. b4 {[%emt 0:01:18]} Nxe5 {[%emt 0:01:38]} 14. fxe5 {[%emt 0:00:33]} Bd7 {[%emt 0:05:27]} 15. a4 {[%emt 0:06:23]} Ng7 {[%emt 0:01:43]} 16. b5 {[%emt 0:01:06]} Be8 {[%emt 0:04:43]} (16... b6 $14) 17. a5 {[%emt 0:01:14]} cxb5 {[%emt 0:08:55]} 18. Bxb5 {[%emt 0:02:13]} Bg6 {[%emt 0:01:55]} (18... Bh5 $16 {war nötig.} 19. Be2 Bxe2 20. Qxe2 a6) 19. a6 {[%emt 0:00:55]} bxa6 {[%emt 0:10:10]} 20. Rxa6 {[%emt 0:00:53]} f4 {[%emt 0:00:35]} 21. exf4 {[%emt 0:00:52]} Rxf4 {[%emt 0:05:07]} 22. Rxf4 {[%emt 0:00:39]} gxf4 {[%emt 0:00:05]} 23. Be2 {[%emt 0:12:50]} Be4 {[%emt 0:08:48]} 24. Bf3 {[%emt 0:01:11]} Qb7 {[%emt 0:03:09]} 25. Rd6 {[%emt 0:00:52]} Bxf3 {[%emt 0:01:43]} 26. Qxf3 {[%emt 0:00:14]} Qb2 {[%emt 0:02:40]} 27. h3 {[%emt 0:03:46]} Kh8 {[%emt 0:03:06]} 28. Rd7 $18 {[%emt 0:00:34]} Rg8 {[%emt 0:02:28]} 29. Ne2 {[%emt 0:04:07]} Nf5 {[%emt 0:02:29]} 30. Nxf4 {[%emt 0:21:45]} Qxd4+ {[%emt 0:00:21]} 31. Qf2 {[%emt 0:01:34]} Qa1+ {[%emt 0:01:32]} 32. Kh2 {[%emt 0:01:05]} Qxe5 {[%emt 0:00:05]} 33. c6 {[%emt 0:00:08]} Rc8 {[%emt 0:02:36]} 34. Qf3 {[%emt 0:08:43]} Rxc6 {[%emt 0:01:21]} 35. Rd8+ {[%emt 0:01:33]} Kg7 {[%emt 0:00:06]} 36. Qg4+ {[%emt 0:00:13]} Kf6 {[%emt 0:00:48]} 37. h4 {[%emt 0:00:02]} Nh6 {[%emt 0:00:47]} 38. Qg3 {[%emt 0:00:17]} Nf7 {[%emt 0:00:26]} 39. Rd7 {[%emt 0:02:04]} Rc4 {[%emt 0:00:26]} 40. Nxd5+ {[%emt 0:00:19]} Qxd5 {[%emt 0:30:36]} 41. Rxd5 {[%emt 0:30:03]} exd5 {[%emt 0:00:18]} 42. Qf2+ {[%emt 0:00:06]} Ke6 {[%emt 0:00:00]} 43. Qxa7 {[%emt 0:00:00]} Rxh4+ {[%emt 0:00:00]} 44. Kg3 {[%emt 0:00:00]} Rh5 {[%emt 0:00:00]} 1/2-1/2

[Event "NOR-chT Codanserien 2017-18"]
[Site "Oslo"]
[Date "2017.12.03"]
[Round "3"]
[White "Skrondal, Inge Sandstad"]
[Black "Haug, Johannes"]
[Result "0-1"]
[ECO "E11"]
[WhiteElo "2246"]
[BlackElo "2359"]
[Annotator "NA"]
[PlyCount "62"]
[EventDate "2017.??.??"]
[EventType "team-tourn"]
[EventCountry "NOR"]
[SourceTitle "playchess.com"]
[Source "ChessBase"]
[SourceQuality "1"]
[TimeControl "40/5400+30:1800+30"]

1. d4 {[%emt 0:01:41]} Nf6 {[%emt 0:00:03]} 2. Nf3 {[%emt 0:00:16]} e6 {[%emt 0:00:21]} 3. c4 {[%emt 0:00:08]} Bb4+ {[%emt 0:00:11]} 4. Bd2 {[%emt 0:00:33]} a5 {[%emt 0:00:28]} 5. a3 {[%emt 0:00:27]} Bxd2+ {[%emt 0:02:57]} 6. Qxd2 {[%emt 0:00:11]} b6 {[%emt 0:10:00]} 7. Nc3 {[%emt 0:03:49]} Bb7 {[%emt 0:08:09]} 8. Qc2 {[%emt 0:04:47]} d5 {[%emt 0:02:44]} 9. cxd5 {[%emt 0:03:17]} exd5 {[%emt 0:00:58]} 10. e3 {[%emt 0:15:56]} O-O {[%emt 0:01:03]} 11. Be2 {[%emt 0:01:38]} Nbd7 {[%emt 0:07:08]} 12. O-O {[%emt 0:01:01]} c5 {[%emt 0:04:23]} 13. Rfd1 {[%emt 0:07:11]} Rc8 {[%emt 0:04:16]} 14. Bb5 {[%emt 0:06:18]} Qe7 {[%emt 0:10:42]} 15. Qf5 {[%emt 0:05:59]} Rfd8 {[%emt 0:03:34]} 16. Ne5 {[%emt 0:07:54]} Nf8 {[%emt 0:06:31]} 17. Na4 {[%emt 0:18:48]} Rd6 $11 {[%emt 0:02:15]} 18. Rac1 {[%emt 0:01:56]} Ne6 {[%emt 0:01:44]} 19. Nc3 {[%emt 0:02:34]} g6 {[%emt 0:03:22]} 20. Qb1 {[%emt 0:01:18]} cxd4 {[%emt 0:04:13]} 21. exd4 {[%emt 0:00:08]} Nxd4 {[%emt 0:00:55]} 22. Nxg6 {[%emt 0:00:26]} Nf3+ {[%emt 0:00:57]} 23. gxf3 {[%emt 0:00:02]} hxg6 {[%emt 0:00:15]} 24. Rd4 {[%emt 0:01:39]} Qe5 {[%emt 0:04:05]} 25. Ne2 {[%emt 0:03:30]} Rc5 {[%emt 0:01:51]} 26. f4 {[%emt 0:01:32]} Qe6 {[%emt 0:01:21]} 27. Bd3 {[%emt 0:02:35]} Qh3 {[%emt 0:05:02]} 28. f3 {[%emt 0:04:12]} Qxf3 {[%emt 0:02:08]} 29. Rf1 {[%emt 0:00:09]} Qe3+ {[%emt 0:03:23]} 30. Kg2 {[%emt 0:00:21]} Ne4 {[%emt 0:01:38]} 31. Rf3 {[%emt 0:01:52]} Qxf3+ {[%emt 0:00:17]} 0-1

[Event "NOR-chT Codanserien 2017-18"]
[Site "Oslo"]
[Date "2017.12.03"]
[Round "3"]
[White "Moen, Ole Christian"]
[Black "Mikalsen, Harald"]
[Result "1-0"]
[ECO "C88"]
[WhiteElo "2178"]
[BlackElo "2030"]
[Annotator "NA"]
[PlyCount "55"]
[EventDate "2017.??.??"]
[EventType "team-tourn"]
[EventCountry "NOR"]
[SourceTitle "playchess.com"]
[Source "ChessBase"]
[SourceQuality "1"]
[TimeControl "40/5400+30:1800+30"]

1. e4 {[%emt 0:00:44]} e5 {[%emt 0:01:16]} 2. Nf3 {[%emt 0:00:09]} Nc6 {[%emt 0:02:39]} 3. Bb5 {[%emt 0:00:09]} a6 {[%emt 0:00:15]} 4. Ba4 {[%emt 0:04:39]} Nf6 {[%emt 0:00:11]} 5. O-O {[%emt 0:00:06]} b5 {[%emt 0:01:01]} 6. Bb3 {[%emt 0:00:19]} Be7 {[%emt 0:01:51]} 7. Re1 {[%emt 0:02:27]} O-O {[%emt 0:02:09]} 8. a4 {[%emt 0:00:09]} Bb7 {[%emt 0:00:33]} 9. c3 {[%emt 0:00:07]} d6 {[%emt 0:02:07]} 10. d4 {[%emt 0:01:30]} Nb8 {[%emt 0:14:27]} 11. axb5 {[%emt 0:06:03]} ({Better is} 11. dxe5 $16 dxe5 12. Qxd8 (12. Nxe5 Qxd1 13. Bxd1 Nbd7 $14) 12... Bxd8 13. Nxe5) 11... axb5 {[%emt 0:00:19]} 12. Rxa8 {[%emt 0:00:05]} Bxa8 {[%emt 0:00:12]} 13. Nbd2 {[%emt 0:00:05]} Nbd7 {[%emt 0:00:21]} 14. h3 {[%emt 0:04:38]} Qb8 {[%emt 0:01:03]} 15. Bc2 $14 {[%emt 0:02:02]} c5 {[%emt 0:01:43]} 16. Nf1 {[%emt 0:00:26]} b4 {[%emt 0:04:34]} 17. Ng3 {[%emt 0:02:04]} g6 {[%emt 0:12:43]} 18. Bg5 {[%emt 0:03:19]} exd4 {[%emt 0:12:22]} 19. cxd4 {[%emt 0:00:34]} c4 {[%emt 0:01:18]} 20. e5 {[%emt 0:07:17]} Nd5 {[%emt 0:01:38]} 21. Bxe7 {[%emt 0:04:37]} Nxe7 {[%emt 0:00:34]} 22. Qe2 {[%emt 0:14:37]} Bd5 {[%emt 0:17:32]} 23. Be4 {[%emt 0:11:27]} Be6 {[%emt 0:12:42]} 24. d5 {[%emt 0:06:05]} Nxd5 {[%emt 0:00:29]} 25. Qd2 {[%emt 0:01:47]} c3 {[%emt 0:01:50]} 26. Qh6 {[%emt 0:05:31]} Nxe5 {[%emt 0:07:04]} 27. Ng5 {[%emt 0:00:57]} Nf6 {[%emt 0:00:18]} 28. Nh5 {[%emt 0:00:14]} 1-0

[Event "NOR-chT Codanserien 2017-18"]
[Site "Oslo"]
[Date "2017.12.03"]
[Round "3"]
[White "Nielsen, Andre"]
[Black "Elseth, Roar"]
[Result "1/2-1/2"]
[ECO "C95"]
[WhiteElo "2126"]
[BlackElo "2324"]
[Annotator "NA"]
[PlyCount "143"]
[EventDate "2017.??.??"]
[EventType "team-tourn"]
[EventCountry "NOR"]
[SourceTitle "playchess.com"]
[Source "ChessBase"]
[SourceQuality "1"]
[TimeControl "40/5400+30:1800+30"]

1. e4 {[%emt 0:00:00]} e5 {[%emt 0:00:06]} 2. Nf3 {[%emt 0:00:00]} Nc6 {[%emt 0:00:05]} 3. Bb5 {[%emt 0:00:03]} a6 {[%emt 0:00:06]} 4. Ba4 {[%emt 0:00:10]} Nf6 {[%emt 0:00:07]} 5. O-O {[%emt 0:00:36]} Be7 {[%emt 0:00:51]} 6. Re1 {[%emt 0:00:32]} b5 {[%emt 0:00:05]} 7. Bb3 {[%emt 0:00:14]} d6 {[%emt 0:00:02]} 8. c3 {[%emt 0:01:17]} O-O {[%emt 0:00:22]} 9. h3 {[%emt 0:00:44]} Nb8 {[%emt 0:00:32]} 10. d4 {[%emt 0:00:46]} Nbd7 {[%emt 0:00:04]} 11. Nbd2 {[%emt 0:00:58]} Bb7 {[%emt 0:00:47]} 12. Bc2 {[%emt 0:00:58]} Re8 {[%emt 0:00:06]} 13. Nf1 {[%emt 0:02:14]} Bf8 {[%emt 0:00:04]} 14. Ng3 {[%emt 0:00:30]} g6 {[%emt 0:00:04]} 15. a4 {[%emt 0:15:27]} c5 {[%emt 0:01:14]} 16. d5 {[%emt 0:02:39]} c4 {[%emt 0:00:13]} 17. Be3 {[%emt 0:01:05]} Nc5 {[%emt 0:07:47]} 18. Bxc5 {[%emt 0:07:40]} dxc5 {[%emt 0:00:08]} 19. Qe2 {[%emt 0:00:51]} Nd7 {[%emt 0:07:10]} 20. Nf1 {[%emt 0:02:44]} Nb6 {[%emt 0:02:23]} 21. Ne3 {[%emt 0:01:12]} Qd6 {[%emt 0:07:07]} 22. Kh1 {[%emt 0:07:32]} Bg7 {[%emt 0:02:47]} 23. Ra2 {[%emt 0:12:10]} Reb8 {[%emt 0:01:30]} 24. Rea1 {[%emt 0:01:00]} Bc8 {[%emt 0:01:42]} 25. axb5 {[%emt 0:06:54]} axb5 {[%emt 0:00:03]} 26. Qf1 {[%emt 0:01:11]} Bd7 {[%emt 0:07:07]} 27. Nd2 {[%emt 0:07:25]} Qf8 {[%emt 0:05:34]} 28. Ra7 {[%emt 0:04:22]} h5 {[%emt 0:05:43]} 29. R1a6 {[%emt 0:02:10]} Qd8 {[%emt 0:05:14]} 30. Qa1 {[%emt 0:01:36]} Rxa7 {[%emt 0:09:38]} 31. Rxa7 {[%emt 0:00:10]} Qf6 {[%emt 0:17:12]} 32. Kg1 {[%emt 0:02:24]} Qd6 {[%emt 0:02:11]} 33. Qa6 {[%emt 0:01:39]} Bf8 {[%emt 0:03:08]} 34. Nb1 {[%emt 0:05:08]} Be8 {[%emt 0:02:31]} 35. Na3 {[%emt 0:01:26]} Nc8 {[%emt 0:00:45]} 36. Qxd6 {[%emt 0:01:01]} Nxd6 {[%emt 0:01:11]} 37. g3 {[%emt 0:01:42]} Bh6 {[%emt 0:02:24]} 38. Ra6 {[%emt 0:04:53]} Rd8 {[%emt 0:02:15]} 39. Rb6 {[%emt 0:02:09]} Bf8 {[%emt 0:01:45]} 40. Kg2 {[%emt 0:01:39]} Bh6 {[%emt 0:30:50]} 41. Kf3 {[%emt 0:32:00]} Kf8 42. Ra6 Ke7 {[%emt 0:00:00]} 43. Nb1 {[%emt 0:00:00]} Bd7 {[%emt 0:00:00]} 44. h4 {[%emt 0:00:00]} Rf8 {[%emt 0:00:00]} 45. Ke2 {[%emt 0:00:00]} f5 {[%emt 0:00:00]} 46. exf5 {[%emt 0:00:00]} gxf5 {[%emt 0:00:00]} 47. Nd2 {[%emt 0:00:00]} f4 {[%emt 0:00:00]} 48. gxf4 {[%emt 0:00:00]} exf4 {[%emt 0:00:00]} 49. Nef1 {[%emt 0:00:00]} Bg7 {[%emt 0:00:00]} 50. Nf3 {[%emt 0:00:00]} b4 {[%emt 0:00:00]} 51. N1d2 {[%emt 0:00:00]} Rb8 {[%emt 0:04:53]} 52. Ba4 {[%emt 0:00:00]} Bg4 {[%emt 0:01:07]} 53. Rc6 {[%emt 0:00:26]} bxc3 {[%emt 0:00:17]} 54. Rc7+ {[%emt 0:01:07]} Kf8 {[%emt 0:00:08]} 55. bxc3 {[%emt 0:01:16]} Bxc3 $19 {[%emt 0:01:35]} 56. Kf1 {[%emt 0:02:09]} Bxd2 {[%emt 0:01:37]} 57. Nxd2 {[%emt 0:00:31]} Rb4 {[%emt 0:00:49]} 58. Bc2 {[%emt 0:03:12]} Rb2 {[%emt 0:02:47]} 59. Ne4 {[%emt 0:00:16]} Bf3 {[%emt 0:01:10]} 60. Ng5 {[%emt 0:00:37]} Rxc2 {[%emt 0:00:53]} 61. Nxf3 {[%emt 0:00:39]} Ne4 {[%emt 0:00:10]} 62. Ng5 {[%emt 0:00:39]} Nxg5 {[%emt 0:01:04]} 63. hxg5 {[%emt 0:00:08]} f3 {[%emt 0:00:30]} 64. Kg1 {[%emt 0:00:31]} h4 {[%emt 0:01:00]} 65. Rh7 {[%emt 0:00:43]} Rc1+ {[%emt 0:00:26]} 66. Kh2 {[%emt 0:00:07]} Rf1 {[%emt 0:00:24]} 67. Rxh4 {[%emt 0:00:16]} Rxf2+ {[%emt 0:00:10]} 68. Kg3 {[%emt 0:00:48]} Rg2+ {[%emt 0:00:37]} 69. Kxf3 {[%emt 0:00:10]} Rxg5 {[%emt 0:00:04]} 70. Ke4 {[%emt 0:00:42]} c3 {[%emt 0:00:33]} 71. Kd3 {[%emt 0:01:13]} Rxd5+ {[%emt 0:01:26]} 72. Kxc3 {[%emt 0:00:09]} 1/2-1/2

[Event "NOR-chT Codanserien 2017-18"]
[Site "Oslo"]
[Date "2017.12.03"]
[Round "3"]
[White "Lahlum, Hans Olav"]
[Black "Nordquelle, Daniel"]
[Result "1-0"]
[ECO "D37"]
[WhiteElo "2113"]
[BlackElo "2188"]
[Annotator "NA"]
[PlyCount "87"]
[EventDate "2017.??.??"]
[EventType "team-tourn"]
[EventCountry "NOR"]
[SourceTitle "playchess.com"]
[Source "ChessBase"]
[SourceQuality "1"]
[TimeControl "40/5400+30:1800+30"]

1. d4 {[%emt 0:00:00]} d5 {[%emt 0:00:09]} 2. c4 {[%emt 0:00:00]} e6 {[%emt 0:00:08]} 3. Nf3 {[%emt 0:00:00]} Nf6 {[%emt 0:00:19]} 4. Nc3 {[%emt 0:00:15]} Nbd7 {[%emt 0:02:03]} 5. Bg5 {[%emt 0:00:20]} h6 {[%emt 0:02:41]} 6. Bh4 {[%emt 0:00:12]} Bb4 {[%emt 0:04:38]} 7. cxd5 {[%emt 0:00:07] D51: Damengambit (Cambridge-Springs-Variante und Abweichungen)} exd5 {[%emt 0:00:06]} 8. e3 {[%emt 0:00:33]} g5 {[%emt 0:15:31]} 9. Bg3 {[%emt 0:00:11]} Ne4 {[%emt 0:00:09]} 10. Qc2 {[%emt 0:00:33] LiveBook: 16 Games} h5 {[%emt 0:02:54]} 11. h3 {[%emt 0:00:39]} Nxg3 $146 {[%emt 0:00:23]} ({Vorgänger:} 11... Qf6 12. Bd3 Bxc3+ 13. bxc3 Nxg3 14. fxg3 g4 15. hxg4 hxg4 {½-½ (38) Vachier Lagrave,M (2723)-Grischuk,A (2781) Stavanger 2015}) 12. fxg3 {[%emt 0:00:05]} c6 {[%emt 0:12:46]} 13. Bd3 {[%emt 0:07:41]} Nf8 {[%emt 0:11:26]} 14. O-O-O {[%emt 0:07:40]} g4 {[%emt 0:04:56]} 15. Nh4 {[%emt 0:09:01]} Be6 {[%emt 0:06:59]} 16. Nf5 {[%emt 0:03:00]} Qg5 {[%emt 0:00:35]} 17. h4 {[%emt 0:02:00]} Qd8 {[%emt 0:04:40]} 18. Rhf1 {[%emt 0:04:47]} Qc7 {[%emt 0:04:37]} 19. Ng7+ {[%emt 0:07:55]} Kd8 {[%emt 0:01:17]} 20. Nxe6+ {[%emt 0:00:36]} fxe6 {[%emt 0:02:38]} 21. Ne2 {[%emt 0:12:30]} Qd7 {[%emt 0:06:50]} 22. Rf2 $16 {[%emt 0:02:48]} Rc8 {[%emt 0:01:24]} 23. Rdf1 {[%emt 0:03:02]} Rc7 {[%emt 0:00:22]} 24. Kb1 {[%emt 0:04:53]} Bd6 {[%emt 0:02:48]} 25. Qa4 {[%emt 0:09:05]} a6 {[%emt 0:01:38]} 26. Nf4 {[%emt 0:01:46]} e5 {[%emt 0:01:12]} 27. dxe5 {[%emt 0:02:23]} Bxe5 {[%emt 0:00:03]} 28. Nxh5 {[%emt 0:01:03]} Ne6 {[%emt 0:01:51]} 29. Qxg4 {[%emt 0:01:07]} Qd6 {[%emt 0:01:08]} 30. Nf4 {[%emt 0:04:11]} Nc5 {[%emt 0:00:24]} 31. Bc2 {[%emt 0:01:10]} Rg7 {[%emt 0:01:20]} 32. Qf3 {[%emt 0:00:43]} Rhg8 {[%emt 0:02:11]} 33. Nh5 {[%emt 0:01:43]} Re7 {[%emt 0:00:03]} 34. g4 {[%emt 0:01:02]} Kc7 {[%emt 0:01:17]} 35. Nf4 {[%emt 0:00:49]} d4 {[%emt 0:00:59]} 36. Rd1 {[%emt 0:02:42]} Rf8 {[%emt 0:02:03]} 37. g3 {[%emt 0:01:57]} Rd7 {[%emt 0:01:16]} 38. exd4 {[%emt 0:02:24]} Bxd4 {[%emt 0:00:47]} 39. Rfd2 {[%emt 0:01:15]} Qe5 {[%emt 0:01:28]} 40. Nd5+ {[%emt 0:03:19]} Rxd5 {[%emt 0:31:46]} 41. Qxf8 {[%emt 0:30:20]} Ne6 {[%emt 0:00:17]} 42. Qf3 {[%emt 0:04:38]} Rb5 {[%emt 0:00:00]} 43. Bb3 {[%emt 0:00:00]} c5 {[%emt 0:00:00]} 44. Re2 {[%emt 0:00:00]} 1-0

[Event "NOR-chT Codanserien 2017-18"]
[Site "Oslo"]
[Date "2017.12.03"]
[Round "3"]
[White "Andersen, Oystein R"]
[Black "Kaasen, Tor Fredrik"]
[Result "1/2-1/2"]
[ECO "A13"]
[WhiteElo "2067"]
[BlackElo "2347"]
[Annotator "NA"]
[PlyCount "63"]
[EventDate "2017.??.??"]
[EventType "team-tourn"]
[EventCountry "NOR"]
[SourceTitle "playchess.com"]
[Source "ChessBase"]
[SourceQuality "1"]
[TimeControl "40/5400+30:1800+30"]

1. c4 {[%emt 0:00:00]} e6 {[%emt 0:03:22]} 2. g3 {[%emt 0:00:05]} Nf6 {[%emt 0:00:31]} 3. Bg2 {[%emt 0:00:43]} d5 {[%emt 0:00:08]} 4. Nf3 {[%emt 0:00:36]} dxc4 {[%emt 0:01:18]} 5. O-O {[%emt 0:06:11]} Be7 {[%emt 0:01:29]} 6. Na3 {[%emt 0:01:09] A14: English Opening: 1...e6 with b3 by White} a6 {[%emt 0:13:35]} (6... c5 7. Nxc4 Nc6 8. b3 O-O 9. Bb2 Bd7 10. d4 Rc8 11. dxc5 Bxc5 12. Nd6 Rc7 13. Rc1 b6 14. Ng5 Qe7 15. Nge4 Nxe4 16. Nxe4 Rd8 17. Nxc5 bxc5 {1-0 (46) Grischuk,A (2795)-Inarkiev,E (2688) Moscow 2014}) 7. Nxc4 {[%emt 0:05:13]} b5 {[%emt 0:00:32]} 8. Nce5 {[%emt 0:02:44]} O-O {[%emt 0:03:40]} 9. b3 $146 {[%emt 0:06:33]} ({Better is Predecessor:} 9. d4 $16 Bb7 10. Bd2 Nbd7 11. Rc1 Nxe5 12. dxe5 Nd5 13. Qc2 c5 {0-1 (52) Moehn,H (2380)-Dmochowska,A (2202) Warsaw 2017}) 9... Bb7 {[%emt 0:01:12]} 10. Bb2 {[%emt 0:04:42]} c5 {[%emt 0:00:46]} 11. Rc1 {[%emt 0:03:01]} Nbd7 {[%emt 0:05:15]} 12. d4 {[%emt 0:08:22]} Nxe5 {[%emt 0:01:30]} 13. Nxe5 {[%emt 0:00:55]} Bxg2 {[%emt 0:00:57]} 14. Kxg2 {[%emt 0:00:20]} Qd5+ {[%emt 0:02:33]} 15. f3 {[%emt 0:02:53]} Rfd8 {[%emt 0:03:09]} 16. e4 {[%emt 0:01:50]} Qb7 {[%emt 0:01:03]} 17. Qe2 {[%emt 0:02:41]} Rac8 {[%emt 0:06:19]} 18. dxc5 {[%emt 0:03:06]} Bxc5 {[%emt 0:01:02]} 19. Rfd1 {[%emt 0:02:29]} Qb6 {[%emt 0:01:46]} 20. Qc2 {[%emt 0:06:17]} Rxd1 {[%emt 0:06:36]} 21. Rxd1 {[%emt 0:02:25]} Re8 {[%emt 0:01:35]} 22. Qc3 {[%emt 0:03:00]} b4 {[%emt 0:03:19]} 23. Qd3 {[%emt 0:01:59]} Bf8 {[%emt 0:01:58]} 24. Nc4 {[%emt 0:06:50]} Qc5 {[%emt 0:00:42]} 25. Bxf6 {[%emt 0:03:25]} gxf6 {[%emt 0:00:05]} 26. Qd4 {[%emt 0:00:26]} Qg5 {[%emt 0:03:15]} ({Better is} 26... Kg7 $14) 27. Qd7 {[%emt 0:03:20]} Qb5 {[%emt 0:00:07]} 28. Qc7 {[%emt 0:02:55]} Re7 {[%emt 0:03:07]} 29. Qc8 {[%emt 0:03:49]} (29. Qf4 $16) 29... Re8 {[%emt 0:00:33]} 30. Qc7 {[%emt 0:01:14]} Re7 {[%emt 0:05:22]} 31. Qc8 {[%emt 0:00:53]} Re8 $14 {[%emt 0:01:48]} 32. Qc7 {[%emt 0:00:55]} 1/2-1/2